bitfinex/quotes_BTCUSD_20241203
["timestamp","ask_amount","ask_price","bid_price","bid_amount"]
[1733243934505,0.01085723,95507.0,95506.0,0.06524442]
[1733243934735,0.01085723,95507.0,95506.0,0.06339136]
[1733243935404,0.01185723,95507.0,95506.0,0.06339136]
[1733243935620,0.01185723,95507.0,95506.0,0.3436348]
[1733243935857,0.01085723,95507.0,95506.0,0.3436348]
[1733243936114,0.01085723,95507.0,95506.0,0.3456348]
[1733243936331,0.01085723,95507.0,95506.0,0.06339136]
[1733243936971,0.01085723,95507.0,95505.0,0.209411]
[1733243937198,0.01085723,95507.0,95506.0,0.06276]
[1733243938071,0.01085723,95507.0,95506.0,0.06576]
[1733243938293,0.01085723,95507.0,95506.0,0.06376]
[1733243938557,0.01085723,95507.0,95506.0,0.06776]
[1733243938558,0.01185723,95507.0,95506.0,0.06776]
[1733243938778,0.01185723,95507.0,95506.0,0.06676]
[1733243938996,0.01085723,95507.0,95506.0,0.06576]
[1733243939228,0.01185723,95507.0,95506.0,0.06976]
[1733243939919,0.01185723,95507.0,95506.0,0.06676]
[1733243940673,0.01185723,95507.0,95506.0,0.71282257]
[1733243940893,0.01085723,95507.0,95506.0,0.29317259]
[1733243941148,0.01185723,95507.0,95506.0,0.32985313]
[1733243941389,0.01185723,95507.0,95506.0,0.33285313]
[1733243941813,0.01085723,95507.0,95506.0,0.32585313]
[1733243942065,0.01185723,95507.0,95506.0,0.32885313]
[1733243942300,0.0017268,95520.0,95519.0,0.349042]
[1733243942557,0.0017268,95520.0,95519.0,0.78035459]
[1733243942984,0.0017268,95520.0,95519.0,0.81302718]
[1733243943196,0.0017268,95520.0,95519.0,0.78035459]
[1733243943661,0.0017268,95520.0,95519.0,1.19691397]
[1733243943875,0.0017268,95520.0,95519.0,0.78035459]
[1733243944088,0.0027268,95520.0,95519.0,1.20190943]
[1733243944338,0.0027268,95520.0,95519.0,0.78535459]
[1733243944560,0.0027268,95520.0,95519.0,0.78835459]
[1733243945648,0.0027268,95520.0,95519.0,0.3659]
[1733243945858,0.0027268,95520.0,95519.0,0.289]
[1733243947205,0.0027268,95520.0,95519.0,0.008]
[1733243948845,0.0027268,95520.0,95519.0,0.005]
[1733243949274,0.0027268,95520.0,95519.0,0.006]
[1733243949916,0.0017268,95520.0,95519.0,0.001]
[1733243950385,0.0017268,95520.0,95519.0,0.004]
[1733243950598,0.0017268,95520.0,95511.0,0.209399]
[1733243951060,0.0017268,95520.0,95506.0,0.0008634]
[1733243951313,0.0017268,95520.0,95507.0,0.209408]
[1733243951524,0.0017268,95520.0,95519.0,0.002]
[1733243952191,0.0017268,95520.0,95517.0,0.209386]
[1733243952402,0.0022869,95520.0,95518.0,0.06276]
[1733243952855,0.0022869,95520.0,95519.0,0.272142]
[1733243953545,0.0022869,95520.0,95519.0,0.45295459]
[1733243953780,0.0012869,95520.0,95519.0,0.73395459]
[1733243954053,0.0022869,95520.0,95519.0,0.73395459]
[1733243954265,0.0022869,95520.0,95519.0,0.44847259]
[1733243954479,0.0022869,95520.0,95519.0,0.34376]
[1733243954694,0.0012869,95520.0,95519.0,0.34376]
[1733243954909,0.0022869,95520.0,95519.0,0.34376]
[1733243955388,0.0012869,95520.0,95519.0,0.282]
[1733243955606,0.2106669,95520.0,95519.0,0.001]
[1733243956266,0.39747949,95520.0,95519.0,0.001]
[1733243956725,0.209408,95507.0,95506.0,0.0008634]
[1733243957174,0.209405,95509.0,95506.0,0.0008634]
[1733243957425,0.41881,95509.0,95506.0,0.0008634]
[1733243957661,0.209405,95509.0,95506.0,0.0008634]
[1733243958111,0.209408,95507.0,95506.0,0.0038634]
[1733243958346,0.209408,95507.0,95506.0,0.0008634]
[1733243958825,0.209408,95507.0,95506.0,0.0028634]
[1733243959698,0.209408,95507.0,95506.0,0.0038634]
[1733243959930,0.209408,95507.0,95506.0,0.0018634]
[1733243960638,0.209408,95507.0,95506.0,0.0048634]
[1733243961605,0.359408,95507.0,95506.0,0.0048634]
[1733243962080,0.359408,95507.0,95506.0,0.0038634]
[1733243962293,0.359408,95507.0,95506.0,0.0008634]
[1733243962758,0.361408,95507.0,95506.0,0.0008634]
[1733243963653,0.3641348,95507.0,95506.0,0.0008634]
[1733243963868,0.3631348,95507.0,95506.0,0.0008634]
[1733243964092,0.46584739,95507.0,95506.0,0.0008634]
[1733243964319,0.54704739,95507.0,95506.0,0.0008634]
[1733243964543,0.55004739,95507.0,95506.0,0.0008634]
[1733243970544,0.2181348,95507.0,95506.0,0.0008634]
[1733243975524,0.2936348,95507.0,95506.0,0.0008634]
[1733243975739,0.39834739,95507.0,95506.0,0.0008634]
[1733243975966,0.3681348,95507.0,95506.0,0.0008634]
[1733243980293,0.47284739,95507.0,95506.0,0.0008634]
[1733243981414,0.80164739,95507.0,95506.0,0.0008634]
[1733243982311,0.79864739,95507.0,95506.0,0.0008634]
[1733243982533,0.480413,95505.0,95492.0,0.00017681]
[1733243982776,0.78512559,95505.0,95492.0,0.00017681]
[1733243984184,0.79412559,95505.0,95492.0,0.00017681]
[1733243984429,0.78512559,95505.0,95492.0,0.00017681]
[1733243984656,0.79412559,95505.0,95492.0,0.00017681]
[1733243984869,0.80312559,95505.0,95492.0,0.00017681]
[1733243985107,0.79412559,95505.0,95492.0,0.00017681]
[1733243985348,0.78512559,95505.0,95492.0,0.00017681]
[1733243985819,0.79412559,95505.0,95492.0,0.00017681]
[1733243986503,0.80312559,95505.0,95492.0,0.00017681]
[1733243986998,0.359439,95493.0,95492.0,0.00017681]
[1733243987231,0.46415159,95493.0,95492.0,0.00017681]
[1733243987689,0.4750259,95493.0,95492.0,0.00017681]
[1733243988806,0.4810259,95493.0,95492.0,0.00017681]
[1733243989678,0.4900259,95493.0,95492.0,0.00017681]
[1733243991077,0.5718259,95493.0,95492.0,0.00017681]
[1733243991722,0.15,95492.0,95491.0,0.00083738]
[1733243991939,0.25471259,95492.0,95491.0,0.00083738]
[1733243993538,0.30771259,95492.0,95491.0,0.00083738]
[1733243993757,0.31671259,95492.0,95491.0,0.00083738]
[1733243999448,0.015,95492.0,95491.0,0.00083738]
[1733244000582,0.11971259,95492.0,95491.0,0.00083738]
[1733244001040,0.26071259,95492.0,95491.0,0.00083738]
[1733244001273,0.15,95492.0,95491.0,0.00083738]
[1733244001492,0.154,95492.0,95491.0,0.00083738]
[1733244001708,0.004,95492.0,95491.0,0.07673738]
[1733244001953,0.01095378,95493.0,95491.0,0.07673738]
[1733244002176,0.01095378,95493.0,95492.0,0.0466]
[1733244002871,0.01095378,95493.0,95492.0,0.1259]
[1733244003306,0.01195378,95493.0,95492.0,0.1259]
[1733244003517,0.01095378,95493.0,95492.0,0.1259]
[1733244003962,0.01095378,95493.0,95492.0,0.1289]
[1733244004193,0.01095378,95493.0,95492.0,0.29822593]
[1733244004413,0.01095378,95493.0,95492.0,0.29737259]
[1733244005155,0.0017268,95507.0,95504.0,0.352975]
[1733244005378,0.0017268,95507.0,95504.0,0.24827259]
[1733244006744,0.0027268,95505.0,95504.0,0.25327259]
[1733244007467,0.0027268,95505.0,95504.0,0.19051259]
[1733244007705,0.0027268,95505.0,95504.0,0.19351259]
[1733244008883,0.0017268,95505.0,95504.0,0.18851259]
[1733244009132,0.0017268,95505.0,95504.0,0.1903656]
[1733244009347,0.0027268,95505.0,95504.0,0.1953656]
[1733244009593,0.0017268,95505.0,95504.0,0.1903656]
[1733244009826,0.0017268,95505.0,95504.0,0.1953656]
[1733244010041,0.0027268,95505.0,95504.0,0.1923656]
[1733244010503,0.0027268,95505.0,95504.0,0.1943656]
[1733244010739,0.0017268,95505.0,95504.0,0.8893656]
[1733244010956,0.0017268,95505.0,95504.0,0.88551259]
[1733244011399,0.0017268,95505.0,95504.0,0.88851259]
[1733244011628,0.0017268,95505.0,95504.0,0.7838]
[1733244012058,0.0027268,95505.0,95504.0,0.7888]
[1733244012320,0.20722877,95512.0,95504.0,0.7888]
[1733244012582,0.01087122,95517.0,95505.0,0.00185314]
[1733244012848,0.22025822,95517.0,95504.0,0.7848]
[1733244013065,0.22025822,95517.0,95505.0,0.7]
[1733244013748,0.209389,95516.0,95505.0,0.7]
[1733244014202,0.02287122,95517.0,95506.0,0.10471259]
[1733244014420,0.01787122,95517.0,95506.0,0.80656563]
[1733244014643,0.009,95517.0,95506.0,0.80656563]
[1733244014865,0.009,95517.0,95506.0,0.80471259]
[1733244015305,0.002,95517.0,95506.0,0.80471259]
[1733244015539,0.005,95517.0,95506.0,0.80471259]
[1733244015994,0.2106669,95520.0,95507.0,0.209408]
[1733244016209,0.001,95517.0,95507.0,1.01412059]
[1733244016452,0.001,95517.0,95507.0,0.80471259]
[1733244016678,0.209389,95516.0,95507.0,0.80471259]
[1733244016893,0.001,95517.0,95507.0,0.80471259]
[1733244017123,0.209389,95516.0,95507.0,0.80471259]
[1733244017356,0.209389,95516.0,95508.0,0.06276]
[1733244017581,0.4200479,95520.0,95508.0,0.06276]
[1733244017795,0.4220479,95520.0,95508.0,0.06276]
[1733244018053,0.0032869,95520.0,95510.0,0.06276]
[1733244018273,0.0032869,95520.0,95516.0,0.209387]
[1733244018494,0.0032869,95520.0,95517.0,0.06276]
[1733244018707,0.0032869,95520.0,95517.0,0.0528]
[1733244018936,0.0052869,95520.0,95517.0,0.0528]
[1733244019163,0.0012869,95520.0,95517.0,0.0528]
[1733244020278,0.209382,95519.0,95517.0,0.0548]
[1733244020514,0.209382,95519.0,95517.0,0.7548]
[1733244020729,0.0012869,95520.0,95517.0,0.7548]
[1733244021871,0.0012869,95520.0,95517.0,0.7528]
[1733244022307,0.0012869,95520.0,95517.0,0.7548]
[1733244022518,0.0012869,95520.0,95519.0,0.04284]
[1733244022806,0.0012869,95520.0,95519.0,0.74284]
[1733244023022,0.0012869,95520.0,95519.0,0.7]
[1733244023970,0.0042869,95520.0,95519.0,0.7]
[1733244024166,0.25899949,95520.0,95519.0,0.7]
[1733244024652,0.1542869,95520.0,95519.0,0.7]
[1733244025125,0.0052869,95520.0,95519.0,0.7]
[1733244025366,0.0012869,95520.0,95519.0,0.7]
[1733244025606,0.0042869,95520.0,95519.0,0.7]
[1733244025819,0.0042869,95520.0,95509.0,0.06276]
[1733244026047,0.0012869,95520.0,95515.0,0.06276]
[1733244026263,0.418764,95519.0,95515.0,0.06276]
[1733244026495,0.209382,95519.0,95515.0,0.06276]
[1733244026959,0.209382,95519.0,95512.0,0.06276]
[1733244027180,0.209382,95519.0,95508.0,0.0486]
[1733244027181,0.209382,95519.0,95516.0,0.76276]
[1733244029306,0.209382,95519.0,95516.0,0.76376]
[1733244029553,0.209382,95519.0,95517.0,0.02]
[1733244029797,0.0012869,95520.0,95517.0,0.02]
[1733244030935,0.209382,95519.0,95517.0,0.02]
[1733244031593,0.00877621,95518.0,95517.0,0.02]
[1733244031833,0.00877621,95518.0,95517.0,0.721]
[1733244032047,0.209382,95519.0,95517.0,0.721]
[1733244032048,0.209382,95519.0,95517.0,0.021]
[1733244032499,0.00876861,95518.0,95517.0,0.021]
[1733244032718,0.00876861,95518.0,95517.0,0.02]
[1733244032972,0.00876861,95518.0,95517.0,0.022]
[1733244033677,0.00876861,95518.0,95517.0,0.023]
[1733244033902,0.01049541,95518.0,95517.0,0.023]
[1733244034606,0.21987941,95518.0,95517.0,0.023]
[1733244034821,0.21987941,95518.0,95517.0,0.02]
[1733244035048,0.21987941,95518.0,95517.0,0.022]
[1733244035732,0.552192,95518.0,95517.0,0.022]
[1733244035985,0.601292,95518.0,95517.0,0.002]
[1733244037762,0.20941,95506.0,95491.0,0.00083738]
[1733244038031,0.15,95505.0,95491.0,0.00031225]
[1733244038252,0.209432,95497.0,95491.0,0.00031225]
[1733244038736,0.209425,95500.0,95491.0,0.00031225]
[1733244038957,0.00874712,95496.0,95491.0,0.00031225]
[1733244039175,0.209425,95500.0,95491.0,0.00031225]
[1733244039418,0.00874822,95495.0,95491.0,0.00031225]
[1733244039655,0.41885,95500.0,95491.0,0.00031225]
[1733244039894,0.00874933,95494.0,95491.0,0.00231225]
[1733244040110,0.41885,95500.0,95491.0,0.00231225]
[1733244040329,0.209428,95498.0,95491.0,0.00231225]
[1733244040541,0.00875892,95493.0,95491.0,0.00231225]
[1733244040758,0.0087555,95497.0,95491.0,0.00231225]
[1733244041002,0.00875228,95492.0,95483.0,0.01383668]
[1733244041201,0.209428,95498.0,95483.0,0.01383668]
[1733244041433,0.00871502,95491.0,95484.0,0.209459]
[1733244041647,0.209428,95498.0,95484.0,0.209459]
[1733244041865,0.209428,95498.0,95483.0,0.01383668]
[1733244042082,0.0087128,95497.0,95484.0,0.209459]
[1733244042553,0.0087128,95497.0,95485.0,0.06276]
[1733244042775,0.01087605,95504.0,95485.0,0.06276]
[1733244043009,0.20945,95488.0,95485.0,0.06276]
[1733244043500,0.00870736,95487.0,95484.0,0.06476]
[1733244044468,0.209454,95486.0,95484.0,0.002]
[1733244044692,0.42762433,95486.0,95483.0,0.01383668]
[1733244045132,0.21816933,95486.0,95485.0,0.002]
[1733244045562,0.36816933,95486.0,95485.0,0.002]
[1733244045798,0.36816933,95486.0,95484.0,0.002]
[1733244046021,0.37016933,95486.0,95484.0,0.002]
[1733244046286,0.37016933,95486.0,95483.0,0.01383668]
[1733244046287,0.209459,95484.0,95483.0,0.01383668]
[1733244046557,0.46417159,95484.0,95483.0,0.01383668]
[1733244046772,0.47280366,95484.0,95483.0,0.01383668]
[1733244049098,0.47980366,95484.0,95483.0,0.01383668]
[1733244049312,0.48880366,95484.0,95483.0,0.01383668]
[1733244053580,0.48880366,95484.0,95483.0,0.00738769]
[1733244056686,0.76950366,95484.0,95483.0,0.00738769]
[1733244057772,0.96950366,95484.0,95483.0,0.00738769]
[1733244058421,0.359511,95460.0,95459.0,0.0008641]
[1733244058888,0.36803975,95460.0,95459.0,0.0008641]
[1733244059104,0.47275234,95460.0,95459.0,0.0008641]
[1733244059562,0.67775234,95460.0,95459.0,0.0008641]
[1733244059811,0.67790032,95460.0,95459.0,0.0008641]
[1733244060031,0.68490032,95460.0,95459.0,0.0008641]
[1733244060503,0.73000032,95460.0,95459.0,0.0008641]
[1733244060962,0.72500032,95460.0,95459.0,0.0008641]
[1733244061173,0.72500032,95460.0,95449.0,0.0144589]
[1733244061174,0.559533,95450.0,95449.0,9e-07]
[1733244061410,0.559544,95445.0,95444.0,9e-07]
[1733244061653,0.66425659,95445.0,95444.0,9e-07]
[1733244061871,0.67273608,95445.0,95444.0,9e-07]
[1733244062433,0.609553,95441.0,95440.0,9e-07]
[1733244062489,0.759553,95441.0,95440.0,9e-07]
[1733244062871,0.87268325,95441.0,95440.0,9e-07]
[1733244063353,0.88355428,95441.0,95440.0,9e-07]
[1733244064039,0.48355428,95441.0,95440.0,9e-07]
[1733244064507,0.69155428,95441.0,95440.0,9e-07]
[1733244065174,0.70055428,95441.0,95440.0,9e-07]
[1733244067179,0.70028943,95441.0,95440.0,9e-07]
[1733244068049,0.69852917,95441.0,95440.0,9e-07]
[1733244070346,0.48952917,95441.0,95440.0,9e-07]
[1733244070596,0.48152917,95441.0,95440.0,9e-07]
[1733244070845,0.48952917,95441.0,95440.0,9e-07]
[1733244071104,0.48952917,95441.0,95440.0,0.0008642]
[1733244071314,0.48325577,95441.0,95440.0,0.0008642]
[1733244071815,0.50025577,95441.0,95440.0,0.0008642]
[1733244072247,0.48325577,95441.0,95440.0,0.0008642]
[1733244072475,0.49225577,95441.0,95440.0,0.0008642]
[1733244072699,0.48325577,95441.0,95440.0,0.0008642]
[1733244073141,0.49225577,95441.0,95440.0,0.0008642]
[1733244073359,0.48325577,95441.0,95440.0,0.0008642]
[1733244073573,0.49125577,95441.0,95440.0,0.0008642]
[1733244073860,0.49925577,95441.0,95440.0,0.0008642]
[1733244074105,0.49125577,95441.0,95422.0,0.0754]
[1733244074338,0.46426759,95440.0,95422.0,0.0754]
[1733244074767,0.209586,95426.0,95422.0,0.0754]
[1733244075164,0.20959,95424.0,95422.0,0.0754]
[1733244075438,0.31430259,95424.0,95422.0,0.0754]
[1733244075660,0.00689228,95423.0,95422.0,0.0754]
[1733244075885,0.00689228,95423.0,95416.0,0.0008624]
[1733244075886,0.209606,95417.0,95416.0,0.0008624]
[1733244076097,0.209606,95417.0,95416.0,0.0014527]
[1733244076318,0.21649934,95417.0,95416.0,0.0014527]
[1733244076540,0.36649934,95417.0,95416.0,0.0014527]
[1733244078562,0.37737708,95417.0,95416.0,0.0014527]
[1733244078775,0.37737708,95417.0,95416.0,0.0011527]
[1733244082856,0.01777108,95417.0,95416.0,0.0011527]
[1733244083787,0.209617,95412.0,95407.0,0.0789787]
[1733244084042,0.209608,95416.0,95407.0,0.0789787]
[1733244084273,0.209625,95409.0,95407.0,0.0789787]
[1733244084688,0.00685548,95408.0,95407.0,0.0789787]
[1733244086004,0.00785548,95408.0,95407.0,0.0789787]
[1733244087336,0.001,95408.0,95407.0,0.0789787]
[1733244087547,0.00785855,95408.0,95407.0,0.0789787]
[1733244087758,0.001,95408.0,95407.0,0.7789787]
[1733244088241,0.0067046,95408.0,95407.0,0.7789787]
[1733244088455,0.001,95408.0,95407.0,0.7789787]
[1733244088703,0.00670359,95408.0,95407.0,0.0789787]
[1733244088922,0.001,95408.0,95407.0,0.24645129]
[1733244089167,0.0788,95454.0,95407.0,0.24645129]
[1733244089168,0.0477,95469.0,95416.0,0.19096]
[1733244089380,0.209526,95454.0,95430.0,0.1282]
[1733244089592,0.20987508,95450.0,95431.0,0.21142954]
[1733244089847,0.00034108,95450.0,95435.0,0.209566]
[1733244090089,0.00034108,95450.0,95430.0,0.1282]
[1733244090090,0.00034108,95450.0,95438.0,0.06276]
[1733244090334,0.00034108,95450.0,95439.0,0.24822683]
[1733244090552,0.00034108,95450.0,95439.0,0.21637259]
[1733244091206,0.00034108,95450.0,95439.0,0.42592959]
[1733244091426,0.00034108,95450.0,95449.0,0.272295]
[1733244091672,0.0017256,95488.0,95470.0,0.06276]
[1733244091889,0.0017256,95488.0,95455.0,0.4]
[1733244091890,0.0017256,95488.0,95472.0,0.06276]
[1733244092127,0.00477867,95487.0,95472.0,0.06276]
[1733244092335,0.00477867,95487.0,95473.0,0.21133666]
[1733244092547,0.0017256,95488.0,95475.0,0.209478]
[1733244092758,0.0017256,95488.0,95472.0,0.209485]
[1733244093208,0.00478289,95487.0,95473.0,0.10471259]
[1733244093414,0.0017256,95488.0,95479.0,0.209469]
[1733244093628,0.001,95487.0,95475.0,0.7]
[1733244093841,0.001,95487.0,95478.0,0.20947]
[1733244094092,0.001,95487.0,95476.0,0.10656612]
[1733244094420,0.0037256,95488.0,95483.0,0.209459]
[1733244094424,0.0037256,95488.0,95484.0,0.0815]
[1733244094789,0.001,95487.0,95485.0,0.52362459]
[1733244095679,0.001,95487.0,95485.0,0.7]
[1733244095902,0.2131776,95488.0,95485.0,0.7]
[1733244096109,0.001,95487.0,95485.0,0.7]
[1733244096323,0.00580416,95487.0,95485.0,0.7]
[1733244096540,0.00753076,95487.0,95485.0,0.7]
[1733244096760,0.00753076,95487.0,95485.0,0.706]
[1733244097014,0.00753076,95487.0,95485.0,0.7]
[1733244097226,0.00653076,95487.0,95485.0,0.702]
[1733244097653,0.0017266,95487.0,95485.0,0.702]
[1733244098080,0.0017266,95487.0,95485.0,0.703]
[1733244098305,0.0047809,95486.0,95485.0,0.703]
[1733244098516,0.0047809,95486.0,95485.0,0.701]
[1733244098744,0.209454,95486.0,95485.0,0.701]
[1733244098966,0.00478195,95486.0,95485.0,0.705]
[1733244099181,0.00478195,95486.0,95485.0,0.701]
[1733244099413,0.00478195,95486.0,95485.0,0.704]
[1733244099677,0.00478195,95486.0,95485.0,0.7]
[1733244099893,0.00478195,95486.0,95485.0,0.701]
[1733244100127,0.0017266,95487.0,95486.0,0.209454]
[1733244100332,0.0017266,95487.0,95486.0,0.909454]
[1733244101429,0.0017266,95487.0,95486.0,0.910454]
[1733244101646,0.0017266,95487.0,95486.0,0.001]
[1733244102515,0.0017266,95487.0,95486.0,0.701]
[1733244102768,0.0017266,95487.0,95486.0,0.68278107]
[1733244103016,0.0017266,95487.0,95486.0,0.003]
[1733244103435,0.00662994,95487.0,95486.0,0.003]
[1733244104120,0.209454,95486.0,95485.0,0.02]
[1733244104555,0.21435371,95486.0,95485.0,0.72]
[1733244104766,0.00489971,95486.0,95485.0,0.72]
[1733244105877,0.01577943,95486.0,95485.0,0.72]
[1733244106110,0.01577943,95486.0,95485.0,0.712281]
[1733244106751,0.01577943,95486.0,95485.0,0.69408524]
[1733244106980,0.12049202,95486.0,95485.0,0.69408524]
[1733244108785,0.27049202,95486.0,95485.0,0.69408524]
[1733244109008,0.35229202,95486.0,95485.0,0.69408524]
[1733244109930,0.35229202,95486.0,95485.0,0.69208524]
[1733244110120,0.01577943,95486.0,95485.0,0.69208524]
[1733244110374,0.02177943,95486.0,95485.0,0.69308524]
[1733244110610,0.01187972,95486.0,95485.0,0.69208524]
[1733244110814,0.01187972,95486.0,95485.0,0.69308524]
[1733244110815,0.01787972,95486.0,95485.0,0.69308524]
[1733244111029,0.02187972,95486.0,95485.0,0.69308524]
[1733244111730,0.01787972,95486.0,95485.0,0.67507813]
[1733244111942,0.01987972,95486.0,95485.0,0.67507813]
[1733244112159,0.01987972,95486.0,95485.0,0.67407813]
[1733244112443,0.01287972,95486.0,95485.0,0.67407813]
[1733244112692,0.01487972,95486.0,95485.0,0.67407813]
[1733244113115,0.01687972,95486.0,95485.0,0.67407813]
[1733244113306,0.01487972,95486.0,95478.0,0.209471]
[1733244113592,0.01687972,95486.0,95480.0,0.209467]
[1733244114250,0.01487972,95486.0,95479.0,0.7]
[1733244114467,0.22433572,95486.0,95479.0,0.7]
[1733244114675,0.22633572,95486.0,95479.0,0.7]
[1733244115160,0.01487972,95486.0,95476.0,0.209474]
[1733244115366,0.01087972,95486.0,95476.0,0.209474]
[1733244115578,0.209456,95485.0,95472.0,0.00017688]
[1733244115829,0.15,95483.0,95473.0,0.7]
[1733244116037,0.15,95479.0,95473.0,0.7]
[1733244116248,0.15,95479.0,95472.0,0.00017688]
[1733244117153,0.01087972,95486.0,95475.0,0.209477]
[1733244117389,0.01087972,95486.0,95476.0,0.209474]
[1733244117622,0.01087972,95486.0,95476.0,0.19118828]
[1733244118763,0.01087972,95486.0,95473.0,0.209483]
[1733244119002,0.01087972,95486.0,95477.0,0.209472]
[1733244119252,0.01287972,95486.0,95480.0,0.06289]
[1733244119460,0.01287972,95486.0,95472.0,0.00017688]
[1733244119461,0.01260552,95486.0,95484.0,0.209458]
[1733244119691,0.01260552,95486.0,95484.0,0.272348]
[1733244119990,0.01960552,95486.0,95485.0,0.11219]
[1733244120004,0.01460552,95486.0,95485.0,0.11219]
[1733244120239,0.01260552,95486.0,95485.0,0.11219]
[1733244120445,0.01460552,95486.0,95485.0,0.81219]
[1733244120904,0.01260552,95486.0,95485.0,0.81219]
[1733244121145,0.01260552,95486.0,95485.0,0.91690259]
[1733244121350,0.01460552,95486.0,95485.0,0.91690259]
[1733244121563,0.01660552,95486.0,95485.0,0.91690259]
[1733244121769,0.01460552,95486.0,95485.0,0.91690259]
[1733244121978,0.01460552,95486.0,95485.0,0.91890259]
[1733244122419,0.01460552,95486.0,95485.0,0.81219]
[1733244122625,0.01360552,95486.0,95485.0,0.77189]
[1733244122866,0.01360552,95486.0,95485.0,0.709]
[1733244123070,0.01360552,95486.0,95485.0,0.71]
[1733244123500,0.01360552,95486.0,95485.0,0.709]
[1733244123950,0.01460552,95486.0,95485.0,0.709]
[1733244124376,0.01260552,95486.0,95485.0,0.7]
[1733244124808,0.01360552,95486.0,95485.0,0.7]
[1733244125052,0.01360552,95486.0,95485.0,0.76289]
[1733244125736,0.01360552,95486.0,95485.0,0.7]
[1733244125961,0.01260552,95486.0,95485.0,0.7]
[1733244126194,0.22665289,95486.0,95485.0,0.7]
[1733244126426,0.01819889,95486.0,95485.0,0.7]
[1733244126905,0.01719889,95486.0,95485.0,0.7]
[1733244127140,0.01719889,95486.0,95485.0,0.701]
[1733244127639,0.01719889,95486.0,95485.0,0.703]
[1733244128080,0.01260552,95486.0,95485.0,0.703]
[1733244130738,0.16260552,95486.0,95485.0,0.703]
[1733244130976,0.26731811,95486.0,95485.0,0.703]
[1733244131200,0.16260552,95486.0,95485.0,0.703]
[1733244131441,0.37205952,95486.0,95485.0,0.703]
[1733244131665,0.37205952,95486.0,95485.0,0.003]
[1733244131892,0.01260552,95486.0,95485.0,0.003]
[1733244132120,0.01260552,95486.0,95485.0,0.001]
[1733244132330,0.16760552,95486.0,95485.0,0.001]
[1733244132774,0.209469,95480.0,95477.0,0.7]
[1733244132993,0.17060552,95486.0,95477.0,0.7]
[1733244133205,0.17060552,95486.0,95478.0,0.7]
[1733244133448,0.17060552,95486.0,95477.0,0.7]
[1733244133668,0.209468,95480.0,95477.0,0.7]
[1733244133884,0.209463,95482.0,95477.0,0.7]
[1733244134100,0.002,95480.0,95477.0,0.7]
[1733244134783,0.004,95480.0,95477.0,0.7]
[1733244134999,0.20947,95479.0,95477.0,0.7]
[1733244135529,0.004,95480.0,95477.0,0.7]
[1733244135743,0.002,95480.0,95477.0,0.7]
[1733244135956,0.20947,95479.0,95477.0,0.7]
[1733244136167,0.25471259,95478.0,95477.0,0.7]
[1733244137032,0.27771259,95478.0,95477.0,0.7]
[1733244137247,0.27771259,95478.0,95476.0,0.0008629]
[1733244137248,0.382474,95477.0,95476.0,0.0008629]
[1733244137488,0.382483,95473.0,95472.0,0.00017688]
[1733244137713,0.48719559,95473.0,95472.0,0.00017688]
[1733244138182,1.02567624,95473.0,95472.0,0.00017688]
[1733244139088,1.02567624,95473.0,95472.0,0.00117688]
[1733244139089,1.03467624,95473.0,95472.0,0.00117688]
[1733244139302,1.03467624,95473.0,95441.0,0.00099]
[1733244139303,0.458631,95451.0,95441.0,0.00099]
[1733244139506,0.56334359,95451.0,95441.0,0.00099]
[1733244139706,0.56334359,95451.0,95422.0,0.2810718]
[1733244139914,0.56334359,95451.0,95422.0,0.000988]
[1733244141066,0.56934359,95451.0,95422.0,0.000988]
[1733244141298,0.57834359,95451.0,95422.0,0.000988]
[1733244141746,0.56934359,95451.0,95422.0,0.000988]
[1733244142007,0.77834359,95451.0,95422.0,0.000988]
[1733244142236,0.77834359,95451.0,95416.0,0.0008633]
[1733244142651,0.77234359,95451.0,95416.0,0.0008633]
[1733244142913,0.76334359,95451.0,95416.0,0.0008633]
[1733244143148,1.01794359,95451.0,95450.0,2e-07]
[1733244143372,1.01094359,95451.0,95450.0,2e-07]
[1733244143790,1.01794359,95451.0,95450.0,2e-07]
[1733244144208,1.01994359,95451.0,95450.0,2e-07]
[1733244144628,1.03794359,95451.0,95450.0,2e-07]
[1733244145050,1.01994359,95451.0,95450.0,2e-07]
[1733244145286,1.02894359,95451.0,95450.0,2e-07]
[1733244145544,1.01994359,95451.0,95450.0,2e-07]
[1733244145764,1.01094359,95451.0,95450.0,2e-07]
[1733244145988,1.01994359,95451.0,95450.0,2e-07]
[1733244146210,1.02894359,95451.0,95450.0,2e-07]
[1733244146650,1.01994359,95451.0,95450.0,2e-07]
[1733244147128,1.02894359,95451.0,95450.0,2e-07]
[1733244152866,0.40834359,95451.0,95450.0,2e-07]
[1733244153079,0.33224359,95451.0,95450.0,2e-07]
[1733244153519,0.34312147,95451.0,95450.0,2e-07]
[1733244153952,0.74312147,95451.0,95450.0,2e-07]
[1733244154424,0.89312147,95451.0,95450.0,2e-07]
[1733244154652,0.96962147,95451.0,95450.0,2e-07]
[1733244154860,0.99262147,95451.0,95450.0,2e-07]
[1733244156383,0.209593,95423.0,95422.0,0.0009892]
[1733244156828,0.419186,95423.0,95419.0,0.125]
[1733244157538,0.41929079,95423.0,95419.0,0.125]
[1733244157746,0.42129079,95423.0,95419.0,0.125]
[1733244157961,0.41929079,95423.0,95419.0,0.125]
[1733244158450,0.42129079,95423.0,95419.0,0.125]
[1733244158879,0.42329079,95423.0,95419.0,0.125]
[1733244159513,0.42129079,95423.0,95419.0,0.125]
[1733244159719,0.42329079,95423.0,95419.0,0.125]
[1733244159950,0.10881738,95423.0,95403.0,0.00098]
[1733244160160,0.209606,95417.0,95408.0,0.0798]
[1733244161500,0.209602,95419.0,95416.0,0.0018633]
[1733244161733,0.15,95421.0,95416.0,0.0018633]
[1733244161954,0.209599,95420.0,95416.0,0.0018633]
[1733244162440,0.209595,95422.0,95416.0,0.0018633]
[1733244162652,0.209605,95418.0,95416.0,0.0008633]
[1733244162864,0.209597,95421.0,95416.0,0.0008633]
[1733244163285,0.209605,95418.0,95416.0,0.0008633]
[1733244163514,0.209599,95420.0,95416.0,0.0008633]
[1733244163718,0.4192,95420.0,95416.0,0.0008633]
[1733244164619,0.001,95420.0,95417.0,0.336106]